bitfinex/quotes_BTCUSD_20240911
["timestamp","ask_amount","ask_price","bid_price","bid_amount"]
[1726093333252,0.319297,57406.0,57405.0,0.00164]
[1726093333699,0.319297,57406.0,57405.0,0.00864]
[1726093333700,0.320297,57406.0,57405.0,0.00864]
[1726093334153,0.1491,57406.0,57405.0,0.00864]
[1726093334384,0.1491,57406.0,57405.0,0.18284]
[1726093334609,0.1461,57406.0,57405.0,0.03416468]
[1726093335071,0.1471,57406.0,57405.0,0.04116468]
[1726093335755,0.002,57406.0,57405.0,0.04116468]
[1726093335973,0.002,57406.0,57405.0,0.91216668]
[1726093337958,0.002,57406.0,57405.0,0.56376568]
[1726093338172,0.002,57406.0,57405.0,0.91216668]
[1726093338413,0.002,57406.0,57405.0,1.26056768]
[1726093340426,0.002,57406.0,57405.0,0.56376568]
[1726093340645,0.0851,57406.0,57405.0,0.21536468]
[1726093341073,0.0851,57406.0,57405.0,0.04116468]
[1726093341565,0.17276973,57406.0,57405.0,0.04116468]
[1726093341778,0.34696673,57406.0,57405.0,0.04116468]
[1726093342649,0.17276973,57406.0,57405.0,0.04116468]
[1726093342897,0.0851,57406.0,57405.0,0.04116468]
[1726093346274,0.0851,57406.0,57405.0,0.21536468]
[1726093347156,0.0851,57406.0,57405.0,0.04116468]
[1726093347382,0.259297,57406.0,57405.0,0.04116468]
[1726093347632,0.38180453,57406.0,57405.0,0.04116468]
[1726093347847,0.607692,57406.0,57405.0,0.01564]
[1726093348328,0.956087,57406.0,57405.0,0.01564]
[1726093348873,0.607692,57406.0,57405.0,0.01564]
[1726093349123,0.607692,57406.0,57405.0,0.04122284]
[1726093349364,0.607692,57406.0,57405.0,0.01564]
[1726093349605,0.607692,57406.0,57405.0,0.04122284]
[1726093349845,0.73293298,57406.0,57405.0,0.01564]
[1726093350339,1.08132798,57406.0,57405.0,0.01564]
[1726093350577,0.894155,57395.0,57375.0,0.00082]
[1726093350834,1.27628828,57395.0,57377.0,0.3523437]
[1726093351069,1.27628828,57395.0,57383.0,0.174265]
[1726093351291,1.35446015,57395.0,57380.0,0.348549]
[1726093351514,1.35446015,57395.0,57381.0,0.174272]
[1726093352230,1.35546015,57395.0,57394.0,0.0097747]
[1726093352469,1.35546015,57395.0,57394.0,0.0037747]
[1726093352720,1.32646015,57395.0,57394.0,0.0077747]
[1726093352963,1.25328828,57395.0,57394.0,0.0087747]
[1726093353213,0.87482628,57395.0,57394.0,0.0037747]
[1726093353431,0.53936428,57395.0,57394.0,0.0047747]
[1726093353655,0.253231,57395.0,57394.0,0.0047747]
[1726093353901,0.594693,57395.0,57394.0,0.0037747]
[1726093354093,0.588693,57395.0,57394.0,0.0037747]
[1726093354585,0.066,57395.0,57394.0,0.0037747]
[1726093354858,0.174222,57398.0,57394.0,0.0037747]
[1726093355077,0.004,57395.0,57394.0,0.02939225]
[1726093356005,0.174225,57397.0,57394.0,0.02939225]
[1726093356224,0.174225,57397.0,57394.0,0.03239225]
[1726093356504,0.174222,57398.0,57394.0,0.02939225]
[1726093356724,0.174227,57397.0,57394.0,0.03539225]
[1726093356938,0.005,57395.0,57394.0,0.03539225]
[1726093357168,0.004,57395.0,57394.0,0.02939225]
[1726093357388,0.174227,57397.0,57394.0,0.02939225]
[1726093357843,0.174227,57397.0,57394.0,0.03239225]
[1726093358288,0.174227,57397.0,57394.0,0.02939225]
[1726093358486,0.20303328,57395.0,57394.0,0.03339225]
[1726093358760,0.20403328,57395.0,57394.0,0.03739225]
[1726093359638,0.20403328,57395.0,57394.0,0.03339225]
[1726093359870,0.37826428,57395.0,57394.0,0.02939225]
[1726093360097,0.37826428,57395.0,57394.0,0.03539225]
[1726093360321,0.37826428,57395.0,57394.0,0.03939225]
[1726093360763,0.72672628,57395.0,57394.0,0.03939225]
[1726093361199,0.72672628,57395.0,57394.0,0.0137747]
[1726093361420,0.72672628,57395.0,57394.0,0.0097747]
[1726093361663,0.72672628,57395.0,57394.0,0.0157747]
[1726093361879,0.72772628,57395.0,57394.0,0.0157747]
[1726093362090,0.37926428,57395.0,57394.0,0.0157747]
[1726093362308,0.72772628,57395.0,57394.0,0.0157747]
[1726093362523,0.37926428,57395.0,57394.0,0.0157747]
[1726093363177,0.37926428,57395.0,57394.0,0.04145038]
[1726093363400,0.72772628,57395.0,57394.0,0.0157747]
[1726093363631,0.72772628,57395.0,57394.0,0.04145038]
[1726093364100,0.72772628,57395.0,57394.0,0.0157747]
[1726093364536,0.72772628,57395.0,57394.0,0.0165937]
[1726093364760,1.22158828,57395.0,57394.0,0.0165937]
[1726093364990,1.22158828,57395.0,57394.0,0.04226938]
[1726093365233,1.57005028,57395.0,57394.0,0.0165937]
[1726093365674,1.65197121,57395.0,57394.0,0.0165937]
[1726093365904,1.67793168,57395.0,57394.0,0.0165937]
[1726093366150,1.60005028,57395.0,57394.0,0.0165937]
[1726093367066,2.06379055,57395.0,57394.0,0.0165937]
[1726093367283,1.56824228,57386.0,57377.0,0.0037747]
[1726093367515,1.64632037,57386.0,57377.0,0.0037747]
[1726093368164,1.85545983,57386.0,57377.0,0.0037747]
[1726093368630,1.50694283,57386.0,57377.0,0.0037747]
[1726093368835,1.50694283,57386.0,57385.0,0.0082701]
[1726093369283,1.29781737,57386.0,57385.0,0.0082701]
[1726093369512,1.30581737,57386.0,57385.0,0.0092701]
[1726093369723,1.30581737,57386.0,57385.0,0.0032701]
[1726093369724,1.29881737,57386.0,57385.0,0.0032701]
[1726093369936,1.29781737,57386.0,57385.0,0.0032701]
[1726093370178,1.50889867,57386.0,57385.0,0.0032701]
[1726093370636,1.50689867,57386.0,57385.0,0.0032701]
[1726093370908,0.81394839,57386.0,57385.0,0.0032701]
[1726093371133,0.004,57386.0,57385.0,0.0032701]
[1726093371330,0.25636683,57386.0,57385.0,0.0032701]
[1726093371581,0.25636683,57386.0,57385.0,0.02896972]
[1726093371798,0.26136683,57386.0,57385.0,0.0032701]
[1726093372242,0.057062,57386.0,57385.0,0.5897541]
[1726093372467,0.005,57386.0,57385.0,0.9382771]
[1726093372709,0.052062,57387.0,57386.0,0.522775]
[1726093373183,0.052062,57387.0,57386.0,0.54857919]
[1726093373849,0.07810883,57389.0,57386.0,0.54857919]
[1726093373850,0.052062,57388.0,57387.0,0.522765]
[1726093374047,0.07810883,57389.0,57388.0,0.174252]
[1726093374489,0.07810883,57389.0,57388.0,0.20005209]
[1726093375621,0.10410412,57391.0,57388.0,0.20005209]
[1726093375622,0.07810883,57390.0,57388.0,0.20305209]
[1726093375836,0.05204738,57391.0,57388.0,0.20305209]
[1726093376260,0.05204738,57392.0,57388.0,0.20305209]
[1726093376682,0.001,57389.0,57388.0,0.20305209]
[1726093376899,0.001,57389.0,57388.0,0.55155609]
[1726093377154,0.05204738,57392.0,57389.0,0.348497]
[1726093377340,0.05204738,57393.0,57391.0,0.174242]
[1726093377828,0.05204738,57393.0,57392.0,0.02579189]
[1726093378957,0.05204738,57393.0,57391.0,0.174242]
[1726093379240,0.05204738,57393.0,57392.0,0.02579189]
[1726093380210,0.05368538,57394.0,57392.0,0.02579189]
[1726093381656,0.05204738,57393.0,57392.0,0.02579189]
[1726093381916,0.05304726,57393.0,57392.0,0.02579189]
[1726093382405,0.05204726,57393.0,57392.0,0.20003189]
[1726093382655,0.05204726,57393.0,57392.0,0.26313189]
[1726093382922,0.05204726,57393.0,57392.0,0.61161189]
[1726093383168,0.05204726,57393.0,57392.0,0.26313189]
[1726093383420,0.05304726,57393.0,57392.0,0.26313189]
[1726093386932,0.0530641,57393.0,57392.0,0.26313189]
[1726093387182,0.001,57393.0,57392.0,0.26313189]
[1726093388650,0.07909615,57393.0,57392.0,0.26313189]
[1726093390600,0.05287779,57393.0,57392.0,0.26395089]
[1726093391338,0.0007903,57393.0,57392.0,0.26395089]
[1726093392050,0.0007903,57393.0,57392.0,0.61243089]
[1726093392348,0.07893472,57393.0,57392.0,0.26395089]
[1726093392990,0.07893472,57393.0,57392.0,0.20385089]
[1726093394581,0.07893472,57393.0,57392.0,0.02961089]
[1726093394833,0.40242826,57393.0,57392.0,0.02961089]
[1726093395024,0.75090226,57393.0,57392.0,0.003819]
[1726093395249,1.11497694,57393.0,57392.0,0.003819]
[1726093396135,0.96112986,57393.0,57392.0,0.003819]
[1726093396761,1.6068853,57393.0,57392.0,0.003819]
[1726093397441,1.63420673,57393.0,57392.0,0.003819]
[1726093397776,1.63620673,57393.0,57392.0,0.000819]
[1726093398064,1.63541643,57393.0,57392.0,0.000819]
[1726093398291,1.87158598,57393.0,57392.0,0.000819]
[1726093398502,1.39194243,57393.0,57392.0,0.000819]
[1726093399389,1.39694243,57393.0,57392.0,0.000819]
[1726093399599,1.36694243,57393.0,57392.0,0.000819]
[1726093400703,0.48973789,57393.0,57392.0,0.000819]
[1726093401137,0.84321189,57393.0,57392.0,0.000819]
[1726093401367,0.83821189,57393.0,57392.0,0.000819]
[1726093401571,0.83403774,57393.0,57392.0,0.000819]
[1726093401805,0.22032674,57393.0,57392.0,0.175059]
[1726093402030,0.75895649,57393.0,57392.0,0.000819]
[1726093402252,0.75895649,57393.0,57392.0,0.02690638]
[1726093402253,0.80223774,57393.0,57392.0,0.02690638]
[1726093402477,0.80223774,57393.0,57392.0,0.000819]
[1726093402706,0.79887574,57393.0,57392.0,0.000819]
[1726093402916,1.12202831,57393.0,57392.0,0.000819]
[1726093403363,1.33785097,57393.0,57392.0,0.000819]
[1726093403608,1.39085097,57393.0,57392.0,0.000819]
[1726093403816,1.73932497,57393.0,57392.0,0.000819]
[1726093404035,1.74232497,57393.0,57392.0,0.000819]
[1726093404267,1.74432497,57393.0,57392.0,0.000819]
[1726093404484,1.90532497,57393.0,57392.0,0.000819]
[1726093404707,1.90432497,57393.0,57392.0,0.000819]
[1726093404960,2.38786741,57393.0,57392.0,0.000819]
[1726093405185,2.39000303,57393.0,57392.0,0.000819]
[1726093405416,2.38900303,57393.0,57392.0,0.000819]
[1726093405644,2.39400303,57393.0,57392.0,0.000819]
[1726093405889,2.74247703,57393.0,57392.0,0.000819]
[1726093406112,2.21800738,57393.0,57392.0,0.000819]
[1726093406397,1.805226,57386.0,57385.0,0.0040891]
[1726093406626,1.805226,57386.0,57358.0,0.51989914]
[1726093406627,0.17434,57359.0,57358.0,0.51989914]
[1726093406850,0.72605428,57359.0,57358.0,0.51989914]
[1726093407095,0.72605428,57359.0,57358.0,0.02617675]
[1726093407096,0.60383456,57359.0,57358.0,0.02617675]
[1726093407340,0.60383456,57359.0,57350.0,0.0670701]
[1726093407342,0.03,57358.0,57350.0,0.0670701]
[1726093407599,0.03,57358.0,57350.0,0.0032701]
[1726093407600,0.348717,57353.0,57350.0,0.0032701]
[1726093407899,0.07816252,57356.0,57350.0,0.0032701]
[1726093407900,0.05203992,57356.0,57350.0,0.0032701]
[1726093408159,0.05203992,57356.0,57352.0,0.174361]
[1726093408413,0.20303328,57355.0,57352.0,0.02622254]
[1726093408636,0.37738628,57355.0,57352.0,0.02622254]
[1726093408892,0.05203992,57358.0,57354.0,0.1435]
[1726093409150,0.05203992,57359.0,57354.0,0.0638]
[1726093409405,0.40070592,57362.0,57355.0,0.02628375]
[1726093409655,0.37737428,57359.0,57355.0,0.02628375]
[1726093409881,0.20303328,57359.0,57355.0,0.02628375]
[1726093410155,0.0009967,57363.0,57355.0,0.02628375]
[1726093410156,0.001,57356.0,57355.0,0.54934075]
[1726093410385,0.001,57356.0,57355.0,1.24675075]
[1726093410640,0.0009967,57363.0,57362.0,0.871655]
[1726093410873,0.0009967,57363.0,57362.0,1.015155]
[1726093411138,0.05196949,57370.0,57366.0,0.348635]
[1726093411379,0.05196949,57370.0,57369.0,0.52293]
[1726093411640,0.02733465,57371.0,57370.0,0.174307]
[1726093411869,0.02733465,57371.0,57369.0,0.09005111]
[1726093411870,0.23036793,57371.0,57369.0,0.09005111]
[1726093412113,0.28233742,57371.0,57370.0,0.02624906]
[1726093412344,0.23036793,57371.0,57370.0,0.02624906]
[1726093412606,0.23036793,57371.0,57369.0,0.0638]
[1726093412607,0.02733465,57371.0,57369.0,0.238108]
[1726093412841,0.05196949,57373.0,57370.0,0.02624906]
[1726093413085,0.001,57371.0,57370.0,0.02624906]
[1726093413335,0.001,57371.0,57369.0,0.238108]
[1726093413336,0.001,57370.0,57369.0,0.238108]
[1726093413848,0.001,57371.0,57369.0,0.238108]
[1726093415014,0.22626749,57373.0,57369.0,0.0638]
[1726093415015,0.001,57370.0,57369.0,0.0638]
[1726093415290,0.001,57370.0,57369.0,0.0668]
[1726093415291,0.002,57370.0,57369.0,0.0668]
[1726093416167,0.001,57370.0,57369.0,0.0638]
[1726093416382,0.001,57370.0,57369.0,0.0668]
[1726093416823,0.174304,57371.0,57369.0,0.0638]
[1726093417037,0.175304,57371.0,57369.0,0.0638]
[1726093417477,0.174304,57371.0,57369.0,0.0638]
[1726093417716,0.1743,57373.0,57369.0,0.0638]
[1726093417971,0.001,57370.0,57369.0,0.0638]
[1726093418196,0.001,57370.0,57369.0,0.23911]
[1726093418414,0.25495755,57375.0,57369.0,0.0638]
[1726093418629,0.001,57371.0,57369.0,0.0638]
[1726093419109,0.002,57371.0,57370.0,0.174306]
[1726093419589,0.001,57371.0,57370.0,0.174306]
[1726093419829,0.001,57371.0,57366.0,0.0625]
[1726093420077,0.174301,57372.0,57369.0,0.001]
[1726093420319,0.001,57370.0,57369.0,0.001]
[1726093420808,0.174301,57372.0,57369.0,0.001]
[1726093421051,0.001,57371.0,57369.0,0.001]
[1726093421297,0.001,57371.0,57368.0,0.174312]
[1726093421533,0.002,57371.0,57370.0,0.001]
[1726093421745,0.001,57371.0,57368.0,0.174312]
[1726093421971,0.20839129,57371.0,57363.0,0.0625]
[1726093422191,0.17866541,57370.0,57369.0,0.001]
[1726093422404,0.174318,57367.0,57363.0,0.236827]
[1726093423971,0.17410821,57367.0,57363.0,0.236827]
[1726093424854,0.17410821,57367.0,57363.0,0.237827]
[1726093425062,0.17410821,57367.0,57363.0,0.236827]
[1726093425285,0.17510821,57367.0,57363.0,0.236827]
[1726093425532,0.17610821,57367.0,57363.0,0.237827]
[1726093426881,0.002,57367.0,57366.0,1.014195]
[1726093427103,0.002,57367.0,57366.0,1.53877318]
[1726093427551,0.002,57367.0,57366.0,1.362833]
[1726093427785,0.001,57367.0,57366.0,1.38730483]
[1726093428690,0.00164,57371.0,57370.0,0.934035]
[1726093429158,0.00164,57371.0,57370.0,0.95849862]
[1726093431751,0.00164,57371.0,57370.0,0.97049862]
[1726093431971,0.00164,57371.0,57370.0,0.95849862]
[1726093432439,0.00164,57371.0,57370.0,0.97049862]
[1726093434715,0.00164,57371.0,57370.0,0.27327062]
[1726093435150,0.00164,57371.0,57370.0,0.62188462]
[1726093435619,0.00164,57371.0,57370.0,0.61588462]
[1726093435878,0.00264,57371.0,57370.0,0.61588462]
[1726093436105,0.00264,57371.0,57370.0,0.60988462]
[1726093436332,0.00164,57371.0,57370.0,0.60988462]
[1726093436548,0.00264,57371.0,57370.0,0.61588462]
[1726093438140,0.00164,57371.0,57370.0,0.61488462]
[1726093438365,0.00264,57371.0,57370.0,0.61588462]
[1726093438588,0.00264,57371.0,57370.0,0.62188462]
[1726093438589,0.00364,57371.0,57370.0,0.62188462]
[1726093440868,0.00364,57371.0,57370.0,0.27327062]
[1726093441325,0.00364,57371.0,57370.0,0.97049862]
[1726093441557,0.00364,57371.0,57370.0,0.62188462]
[1726093442460,0.00364,57371.0,57370.0,0.97049862]
[1726093442685,0.00364,57371.0,57370.0,1.40041262]
[1726093443832,0.00264,57371.0,57370.0,1.9189668]
[1726093444056,0.00164,57371.0,57370.0,1.9179668]
[1726093444278,0.00264,57371.0,57370.0,1.9319668]
[1726093444939,0.00264,57371.0,57370.0,1.9269668]
[1726093445421,0.00364,57371.0,57370.0,1.9409668]
[1726093446059,0.00364,57371.0,57370.0,1.5923528]
[1726093447618,0.00364,57371.0,57370.0,1.9409668]
[1726093447843,0.00364,57371.0,57370.0,1.5923528]
[1726093448512,0.00364,57371.0,57370.0,1.79538608]
[1726093448739,0.00364,57371.0,57370.0,2.0409668]
[1726093451392,0.00364,57371.0,57370.0,2.0939668]
[1726093451612,0.00364,57371.0,57370.0,2.0959668]
[1726093451829,0.00364,57371.0,57370.0,2.4445808]
[1726093453171,0.00264,57371.0,57370.0,2.4305808]
[1726093453390,0.00164,57371.0,57370.0,2.4305808]
[1726093453606,0.00164,57371.0,57370.0,2.5269668]
[1726093453834,0.00164,57371.0,57370.0,2.5409668]
[1726093454049,0.00164,57371.0,57370.0,2.5129668]
[1726093454267,0.00164,57371.0,57370.0,2.5269668]
[1726093454486,0.00164,57371.0,57370.0,2.5409668]
[1726093454706,0.00164,57371.0,57370.0,2.5129668]
[1726093455159,0.00164,57371.0,57370.0,2.5409668]
[1726093455399,0.00164,57371.0,57370.0,2.5269668]
[1726093456327,0.00164,57371.0,57370.0,2.5129668]
[1726093456560,0.00164,57371.0,57370.0,2.5269668]
[1726093456786,0.00164,57371.0,57370.0,2.5409668]
[1726093457011,0.00164,57371.0,57370.0,2.5129668]
[1726093457462,0.00164,57371.0,57370.0,2.5409668]
[1726093458596,0.00164,57371.0,57370.0,2.5269668]
[1726093459277,0.00164,57371.0,57370.0,2.5129668]
[1726093459718,0.00164,57371.0,57370.0,2.5269668]
[1726093459978,0.00164,57371.0,57370.0,2.35102662]
[1726093460208,0.00164,57371.0,57370.0,2.36502662]
[1726093461401,0.53439685,57383.0,57382.0,0.17427]
[1726093461645,0.0642959,57383.0,57382.0,0.17427]
[1726093461858,0.0633,57383.0,57382.0,0.19860454]
[1726093463393,0.0633,57383.0,57382.0,0.20660454]
[1726093464069,0.0633,57383.0,57382.0,0.21560454]
[1726093465806,0.0633,57383.0,57382.0,0.56414554]
[1726093468699,0.0633,57383.0,57382.0,0.04133454]
[1726093468921,0.315567,57383.0,57382.0,0.04133454]
[1726093469145,0.1413,57383.0,57382.0,0.04133454]
[1726093469842,0.664102,57383.0,57382.0,0.04133454]
[1726093470306,0.664102,57383.0,57382.0,0.017]
[1726093470533,1.06460693,57383.0,57382.0,0.017]
[1726093470755,1.0905919,57383.0,57382.0,0.017]
[1726093470985,1.4391269,57383.0,57382.0,0.017]
[1726093471218,1.30258027,57383.0,57382.0,0.017]
[1726093471664,1.1986404,57383.0,57382.0,0.017]
[1726093472342,1.32856524,57383.0,57382.0,0.017]
[1726093472571,0.97986925,57383.0,57382.0,0.009]
[1726093472796,0.064,57382.0,57375.0,0.174291]
[1726093473016,0.22627546,57379.0,57375.0,0.174291]
[1726093473282,0.05199546,57378.0,57376.0,0.02435534]
[1726093473498,0.05199546,57378.0,57371.0,0.348604]
[1726093473732,0.17429,57376.0,57372.0,0.1743]
[1726093473951,0.17429,57376.0,57372.0,0.19866355]
[1726093474200,0.17429,57376.0,57375.0,0.004]
[1726093474414,0.17429,57376.0,57375.0,0.009]
[1726093474626,0.17429,57376.0,57375.0,0.004]
[1726093475052,0.22628546,57376.0,57375.0,0.004]
[1726093475269,0.65752038,57376.0,57375.0,0.004]
[1726093475515,0.174293,57375.0,57371.0,0.174303]
[1726093475722,0.22626825,57375.0,57372.0,0.007]
[1726093476157,0.22626825,57375.0,57372.0,0.015]
[1726093476381,0.22626825,57375.0,57373.0,0.0243615]
[1726093476600,0.0621,57373.0,57367.0,0.00082]
[1726093476811,0.31102647,57377.0,57367.0,0.00082]
[1726093476812,0.78807228,57368.0,57367.0,0.00082]
[1726093477263,0.0621,57368.0,57367.0,0.00082]
[1726093477914,0.0621,57368.0,57367.0,0.00482]
[1726093478540,0.11407335,57368.0,57367.0,0.00482]
[1726093478956,0.11407335,57368.0,57367.0,0.01282]
[1726093479400,0.11407335,57368.0,57367.0,0.00482]
[1726093479848,0.11407335,57368.0,57367.0,0.00182]
[1726093480052,0.11407335,57368.0,57367.0,0.01082]
[1726093480262,0.11407335,57368.0,57367.0,0.00182]
[1726093480767,0.11407335,57368.0,57367.0,0.00282]
[1726093481240,0.19397335,57368.0,57367.0,0.00282]
[1726093482201,0.142,57368.0,57367.0,0.00282]
[1726093483267,0.0621,57368.0,57367.0,0.00282]
[1726093483474,0.0621,57368.0,57367.0,0.00182]
[1726093483880,0.0621,57368.0,57367.0,0.00082]
[1726093484195,0.0621,57368.0,57367.0,0.00182]
[1726093484868,0.05196355,57369.0,57367.0,0.00282]
[1726093485097,0.05196355,57369.0,57368.0,0.174313]
[1726093485328,0.05196355,57369.0,57368.0,0.1987604]
[1726093485579,0.22627355,57369.0,57368.0,0.0244474]
[1726093485810,0.37287355,57369.0,57367.0,0.00282]
[1726093486061,0.37287355,57369.0,57368.0,0.0244474]
[1726093486567,0.37287355,57369.0,57368.0,0.0254474]
[1726093486786,0.37287355,57369.0,57368.0,0.0264474]
[1726093487704,0.37287355,57369.0,57368.0,0.0254474]
[1726093488679,0.32091,57369.0,57368.0,0.0254474]
[1726093489364,0.32091,57369.0,57368.0,0.001]
[1726093489576,0.32091,57369.0,57368.0,0.00182]
[1726093489796,0.32091,57369.0,57368.0,0.0262674]
[1726093491588,0.32091,57369.0,57368.0,0.0272674]
[1726093492946,0.28228168,57372.0,57368.0,0.0900674]
[1726093493178,0.02733014,57372.0,57368.0,0.0900674]
[1726093493416,0.02733014,57372.0,57370.0,0.174306]
[1726093493853,0.02733014,57372.0,57371.0,0.02444499]
[1726093494299,0.02733014,57372.0,57371.0,0.19874899]
[1726093495218,0.02933014,57372.0,57371.0,0.19874899]
[1726093495430,0.03133014,57372.0,57371.0,0.19874899]
[1726093495661,0.02733014,57372.0,57371.0,0.19874899]
[1726093495890,0.02933014,57372.0,57371.0,0.19874899]
[1726093496109,0.03133014,57372.0,57371.0,0.19874899]
[1726093496361,0.02733014,57372.0,57371.0,0.19874899]
[1726093496576,0.02833014,57372.0,57371.0,0.54735699]
[1726093496799,0.02833014,57372.0,57371.0,0.95796499]
[1726093496800,0.02733014,57372.0,57371.0,0.95796499]
[1726093497012,0.01822075,57377.0,57376.0,0.522865]
[1726093497254,0.0009871,57379.0,57378.0,0.174282]
[1726093497465,0.0009871,57379.0,57376.0,0.02445892]
[1726093497466,0.20303328,57379.0,57376.0,0.02445892]
[1726093497675,0.174289,57376.0,57372.0,0.174298]
[1726093497895,0.0659,57378.0,57373.0,0.174298]
[1726093497896,0.20303328,57374.0,57373.0,0.174298]
[1726093498105,0.44321828,57378.0,57373.0,0.174298]
[1726093498535,0.174286,57377.0,57373.0,0.174298]
[1726093498732,0.174286,57377.0,57376.0,0.004]
[1726093498997,0.174286,57377.0,57373.0,0.174298]
[1726093499425,0.174286,57377.0,57373.0,0.177298]
[1726093499645,0.174286,57377.0,57373.0,0.174298]
[1726093500089,0.174286,57377.0,57376.0,0.004]
[1726093500274,0.174286,57377.0,57373.0,0.174298]
[1726093500521,0.32084181,57378.0,57368.0,0.411445]
[1726093500741,0.174286,57377.0,57373.0,0.176297]
[1726093501217,0.348581,57376.0,57373.0,0.002]
[1726093501445,0.348581,57376.0,57370.0,0.174306]
[1726093501446,0.37732828,57374.0,57370.0,0.174306]
[1726093501685,0.37732828,57374.0,57373.0,0.007]
[1726093502121,0.37732828,57374.0,57373.0,0.004]
[1726093502575,0.174298,57373.0,57369.0,0.174308]
[1726093502787,0.174298,57373.0,57370.0,0.007]
[1726093503217,0.174298,57373.0,57369.0,0.174308]
[1726093504353,0.174301,57372.0,57369.0,0.174308]
[1726093504578,0.174298,57373.0,57369.0,0.181308]
[1726093504799,0.37732828,57374.0,57370.0,0.174306]
[1726093505044,0.174298,57373.0,57370.0,0.182306]
[1726093505281,0.174298,57373.0,57368.0,0.523753]
[1726093505525,0.174298,57373.0,57369.0,0.183309]
[1726093505727,0.22619753,57376.0,57372.0,0.174299]
[1726093505956,0.05190853,57376.0,57373.0,0.174297]
[1726093506190,0.22619753,57376.0,57371.0,0.0602]
[1726093506448,0.22619753,57376.0,57372.0,0.174298]
[1726093507128,0.05190853,57375.0,57372.0,0.174298]
[1726093507391,0.05190853,57375.0,57374.0,0.174294]
[1726093507620,0.05190853,57375.0,57374.0,0.871472]
[1726093507864,0.0778628,57376.0,57375.0,0.522874]
[1726093507865,0.05190853,57376.0,57375.0,0.522874]
[1726093508090,0.05190853,57376.0,57375.0,0.871457]
[1726093508537,0.05190853,57376.0,57375.0,0.522874]
[1726093508777,0.08222016,57377.0,57376.0,0.522865]
[1726093509039,0.0778628,57377.0,57376.0,0.871442]
[1726093509552,0.10381707,57378.0,57376.0,0.871442]
[1726093509553,0.10381707,57378.0,57377.0,0.522856]
[1726093510465,0.31533774,57379.0,57378.0,0.174282]
[1726093510688,0.31537544,57379.0,57375.0,0.009]
[1726093510921,0.10403153,57377.0,57376.0,0.348576]
[1726093511142,0.10403153,57377.0,57376.0,0.522862]
[1726093511391,0.10403153,57377.0,57375.0,0.005]
[1726093511644,0.28963563,57377.0,57376.0,0.174288]
[1726093512082,0.28963563,57377.0,57376.0,0.522865]
[1726093512310,0.12977134,57378.0,57377.0,0.174285]
[1726093513320,0.18565885,57378.0,57377.0,0.174285]
[1726093513806,0.20303328,57380.0,57378.0,0.174282]
[1726093514031,0.18571741,57379.0,57378.0,0.174282]
[1726093514309,0.18571741,57379.0,57377.0,0.005]
[1726093514765,0.18571741,57379.0,57377.0,0.003]
[1726093514993,0.18571741,57379.0,57376.0,0.174286]
[1726093515215,0.18571741,57379.0,57378.0,0.02441724]
[1726093515460,0.18571741,57379.0,57378.0,0.001]
[1726093515696,0.18571741,57379.0,57376.0,0.174286]
[1726093515930,0.18571741,57379.0,57377.0,0.001]
[1726093516164,0.18571741,57379.0,57377.0,0.02541929]
[1726093516416,0.18571741,57379.0,57378.0,0.001]
[1726093516651,0.18571741,57379.0,57378.0,0.02541724]
[1726093516887,0.18571741,57379.0,57378.0,0.02441724]
[1726093517114,0.18583662,57379.0,57378.0,0.02441724]
[1726093517579,0.18583662,57379.0,57378.0,0.02541724]
[1726093517814,0.70867462,57379.0,57378.0,0.02541724]
[1726093518082,0.76997462,57379.0,57378.0,0.02541724]
[1726093518315,0.69974444,57379.0,57378.0,0.02541724]
[1726093519228,0.69974444,57379.0,57378.0,0.02641724]
[1726093519684,0.63844444,57379.0,57378.0,0.02641724]
[1726093520413,0.48216688,57379.0,57378.0,0.02641724]
[1726093520709,0.30788788,57379.0,57378.0,0.02641724]
[1726093520941,0.46416544,57379.0,57378.0,0.02641724]
[1726093524346,0.46416544,57379.0,57378.0,0.20069924]
[1726093525044,0.46416544,57379.0,57378.0,0.02641724]
[1726093525508,0.46416544,57379.0,57378.0,0.02723624]
[1726093526244,0.51556736,57379.0,57378.0,0.02723624]
[1726093527213,0.51616608,57379.0,57378.0,0.02723624]
[1726093528347,0.69044508,57379.0,57378.0,0.02723624]
[1726093528616,1.38054267,57379.0,57378.0,0.02723624]
[1726093528818,1.63282175,57379.0,57378.0,0.02723624]
[1726093529033,1.63282175,57379.0,57378.0,0.002819]
[1726093530780,1.98138075,57379.0,57378.0,0.002819]
[1726093531667,2.13638075,57379.0,57378.0,0.002819]
[1726093531879,2.13438075,57379.0,57378.0,0.002819]
[1726093533445,2.13638075,57379.0,57378.0,0.002819]
[1726093533891,2.640366,57379.0,57378.0,0.002819]
[1726093533896,1.220128,57371.0,57370.0,0.000819]
[1726093534111,1.53031224,57371.0,57370.0,0.000819]
[1726093534335,1.76851224,57371.0,57370.0,0.000819]
[1726093534562,1.79851224,57371.0,57370.0,0.000819]
[1726093534847,2.1435957,57371.0,57370.0,0.000819]
[1726093535081,2.19499665,57371.0,57370.0,0.000819]
[1726093535307,2.19299665,57371.0,57370.0,0.000819]
[1726093535770,2.19499665,57371.0,57370.0,0.000819]
[1726093536227,2.22233161,57371.0,57370.0,0.000819]
[1726093536468,2.22633161,57371.0,57370.0,0.001819]
[1726093536687,2.22821601,57371.0,57370.0,0.001819]
[1726093536904,2.23221601,57371.0,57370.0,0.002819]
[1726093537120,2.22621601,57371.0,57370.0,0.001819]
[1726093537350,1.56465675,57371.0,57370.0,0.001819]
[1726093537585,0.81414075,57371.0,57370.0,0.002819]
[1726093537811,0.88479106,57371.0,57370.0,0.002819]
[1726093538031,0.71048706,57371.0,57370.0,0.02728396]
[1726093538253,1.58200706,57371.0,57370.0,0.02728396]
[1726093538492,1.58200706,57371.0,57370.0,0.002819]
[1726093538493,1.23339906,57371.0,57370.0,0.002819]
[1726093538726,1.55346861,57371.0,57370.0,0.002819]
[1726093538971,1.55346861,57371.0,57363.0,0.00082]
[1726093538972,0.901625,57364.0,57363.0,0.00082]
[1726093539205,1.43698368,57364.0,57363.0,0.00082]
[1726093539448,1.43698368,57364.0,57355.0,0.000819]
[1726093539449,0.953947,57356.0,57355.0,0.000819]
[1726093539709,1.61340594,57356.0,57355.0,0.000819]
[1726093539976,1.0215161,57356.0,57355.0,0.000819]